Cogmind - Beta 17.1 @@@ ROGUE MODE // 2026.09.20 @ 17:13:22 Player: Figgis Result: Destroyed by B-48 Gladiator with Mace Performance ------------- Evolutions (3) 1500 Regions Visited (10) 2000 Robots Destroyed (177) 885 Value Destroyed (5970) 5970 Prototype IDs (10) 200 Alien Tech Used (0) 0 Bonus (587) 587 TOTAL SCORE: 11142 Bonus ------- High Alert Combat Kills 126 Follower Combat Kills 161 Met Imprinter 300 Cogmind --------- Core Integrity 0/700 Matter 58/300 Energy 200/800 System Corruption 1% Temperature Cool (0) Movement Treading (185) Ox1 Location -6/Proximity Caves Parts ------- > --- POWER (1) -------- Hybrid Deuterium Engine > --- PROPULSION (4) --- Advanced Treads > --- UTILITY (5) ------ Large Storage Unit > --- WEAPON (3) ------- Chainsword > --- INVENTORY (15) --- Improved Heat Sink Coolant Injector Medium Reactive Plating Advanced Hacking Suite Decoy Drone Bay (16/16) Hacking Drone Bay Shock Bomb Launcher GAL Module Peak State ------------ > --- POWER ------------ Improved Deuterium Engine > --- PROPULSION ------- Armored Treads Armored Treads Armored Treads Medium Treads > --- UTILITY ---------- Large Storage Unit Advanced Targeting Computer Heart of Steel > --- WEAPON ----------- Heavy Riot Gun Gatling Laser RU-N14's Throwing Claymores > --- INVENTORY -------- Light Nuclear Core Hybrid Deuterium Engine Advanced Treads Improved Heat Sink Coolant Injector Medium Reactive Plating Advanced Hacking Suite Decoy Drone Bay Hacking Drone Bay Gatling Laser Heavy Battle Rifle Shock Bomb Launcher Chainsword GAL Module [Rating: 67] Favorites ----------- Power Improved Deuterium Engine Engine Improved Deuterium Engine Power Core Nuclear Core Propulsion Armored Treads Treads Armored Treads Utility Large Storage Unit Device Cooling System Storage Large Storage Unit Processor Advanced Targeting Computer Hackware System Shield Protection Insulated Plating Weapon Gatling Laser Energy Gun Gatling Laser Energy Cannon Particle Cannon Ballistic Gun Minigun Launcher Shock Bomb Launcher Special Weapon RU-N14's Throwing Claymores Slashing Weapon Katana Build | -11 -10 -10 -9 -9 -8 -7 -7 -7 -7 -6 ------- Run | Yrd Mat Min Mat Min Mat Fac Low Low Zio Pro Slots Evolved 6 | . . . 2 . 2 2 . . . . Power . | . . . . . . . . . . . Propulsion 2 | . . . 1 . 1 . . . . . Utility 3 | . . . 1 . 1 1 . . . . Weapon 1 | . . . . . . 1 . . . . Parts Attached 98 | 3 10 1 26 4 15 29 3 1 2 4 Power 12 | . 1 . 2 1 3 4 . . . 1 Engine 10 | . 1 . 2 1 3 3 . . . . Core 2 | . . . . . . 1 . . . 1 Reactor . | . . . . . . . . . . . Propulsion 25 | 2 2 . 8 1 3 8 . . . 1 Treads 25 | 2 2 . 8 1 3 8 . . . 1 Leg . | . . . . . . . . . . . Wheel . | . . . . . . . . . . . Hover . | . . . . . . . . . . . Flight . | . . . . . . . . . . . Utility 24 | . 2 1 6 . 6 7 2 . . . Device 10 | . . . 3 . 3 3 1 . . . Storage 4 | . 1 1 1 . 1 . . . . . Processor 3 | . . . . . . 2 1 . . . Hackware 1 | . . . . . 1 . . . . . Protection 6 | . 1 . 2 . 1 2 . . . . Artifact . | . . . . . . . . . . . Weapon 37 | 1 5 . 10 2 3 10 1 1 2 2 Energy Gun 16 | 1 2 . 2 . 2 7 . . 1 1 Energy Cannon 6 | . 1 . 5 . . . . . . . Ballistic Gun 9 | . 2 . 1 2 1 2 1 . . . Ballistic Cannon . | . . . . . . . . . . . Launcher 2 | . . . 1 . . . . 1 . . Special Weapon 1 | . . . . . . . . . 1 . Impact Weapon . | . . . . . . . . . . . Slashing Weapon 3 | . . . 1 . . 1 . . . 1 Piercing Weapon . | . . . . . . . . . . . Special Melee Weapon . | . . . . . . . . . . . Unidentified Prototypes 10 | . . . 3 . 3 2 1 . 1 . Parts Lost 22 | . . . 1 . 6 7 1 . . 7 Power 3 | . . . . . 1 1 . . . 1 Propulsion 8 | . . . . . 2 3 . . . 3 Utility 7 | . . . 1 . 3 1 1 . . 1 Weapon 4 | . . . . . . 2 . . . 2 Highest Loss Streak 6 | . . . 1 . 3 2 1 . . 6 To Critical Strikes . | . . . . . . . . . . . Average Backups 13 | 3 5 9 14 14 13 13 13 14 13 12 Power 1 | 1 2 3 2 1 1 1 2 2 2 1 Propulsion 1 | . . 1 1 2 1 2 2 2 1 . Utility 4 | . . 2 4 5 5 5 4 5 5 6 Weapon 4 | 1 1 3 5 5 5 5 4 5 4 3 Tool/Special . | . . . . . . . . . . . Unused Backups 23 | . . . 11 . 2 4 2 . 1 3 Power 4 | . . . 3 . . 1 . . . . Propulsion 6 | . . . 2 . 1 1 1 . 1 . Utility 8 | . . . 3 . . 1 1 . . 3 Weapon 5 | . . . 3 . 1 1 . . . . Tool/Special . | . . . . . . . . . . . Average Slot Usage (%) 93 | . 93 100 98 100 92 98 98 84 84 80 Engine 8 | . 12 14 11 11 8 4 7 7 7 6 Treads 30 | . 28 28 32 33 35 29 30 30 30 28 Device 9 | . . . 10 11 9 14 14 7 7 6 Storage 8 | . 12 14 11 11 9 7 7 7 7 7 Processor 4 | . . . . . . 6 7 7 7 6 Hackware 1 | . . . . . 8 4 . . . . Protection 5 | . 11 14 9 11 2 2 6 . . . Energy Gun 10 | . 11 14 3 . 9 14 15 10 14 6 Energy Cannon 3 | . 2 . 17 16 . . . . . . Ballistic Gun 6 | . 13 14 . 5 8 6 7 9 7 6 Peak Build Rating 67 | 3 8 8 23 24 37 46 62 62 66 67 Average Rating 38 | 1 6 8 17 22 29 41 46 60 62 63 On Entrance 30 | . 3 8 8 22 24 32 46 62 61 66 Avg Prop Armor Cover (%) 28 | 34 29 . 7 7 . . . . . . Naked Turns . | . . . . . . . . . . . Heaviest Build 65 | 1 15 29 40 40 38 64 65 53 55 55 Greatest Support 92 | 3 40 40 69 69 92 88 88 88 88 88 Greatest Overweight (x) 1 | . . . . . . . . . . 1 Average Overweight (x) . | . . . . . . . . . . . Largest Inventory Capacity 15 | 5 8 15 15 15 15 15 15 15 15 15 Average Capacity 14 | 5 7 14 15 15 15 15 15 15 15 15 Most Carried 15 | 5 8 11 15 15 15 15 15 15 15 15 Average Carried 13 | 3 5 9 14 14 14 14 14 15 14 14 Final Capacity 15 | 5 8 15 15 15 15 15 15 15 15 15 Final Carried 15 | 5 8 11 15 14 15 15 15 15 15 9 Class Distribution -------------------- 47% | Gunner 41% | Mutant 7% | Scientist-Gunner Dominant Class ---------------- Mutant | -10/Materials Mutant | -10/Mines Mutant | -9/Materials Mutant | -9/Mines Mutant | -8/Materials Gunner | -7/Factory Gunner | -7/Lower Caves Gunner | -7/Lower Caves Gunner | -7/Zion Gunner | -6/Proximity Caves Resources | -11 -10 -10 -9 -9 -8 -7 -7 -7 -7 -6 ----------- Run | Yrd Mat Min Mat Min Mat Fac Low Low Zio Pro Matter Collected 4714 | 230 164 214 415 78 486 896 120 1088 194 829 Remotely . | . . . . . . . . . . . Salvage Created 7287 | . 441 . 1622 389 576 2621 248 687 . 703 Parts 365 | . 35 . 101 24 25 134 3 19 . 24 Haulers Intercepted 10 | . 2 . 5 . . 3 . . . . Recyclers Shooed 4 | . . . 2 . . 1 . 1 . . Parts Field Recycled . | . . . . . . . . . . . Retrieved Matter . | . . . . . . . . . . . Parts Self-Destructed 40 | . . . . . . . 3 11 . 26 Prevented 7 | . . . . . . . . 7 . . Parts Restored . | . . . . . . . . . . . Kills | -11 -10 -10 -9 -9 -8 -7 -7 -7 -7 -6 ------- Run | Yrd Mat Min Mat Min Mat Fac Low Low Zio Pro Combat Hostiles Destroyed 142 | . 11 . 32 11 13 46 5 8 . 16 Guns 91 | . 11 . 5 . 13 45 5 4 . 8 Cannons 34 | . . . 23 10 . . . . . 1 AOE 13 | . . . 2 . . . . 4 . 7 Classes Destroyed 14 | . 6 . 4 . 1 2 . 1 . . Worker 5 | . 1 . 2 . . 2 . . . . Builder 2 | . . . . . . 2 . . . . Tunneler 1 | . . . 1 . . . . . . . Hauler 10 | . 2 . 5 . . 3 . . . . Recycler 4 | . . . 2 . . 2 . . . . Operator 3 | . 1 . . . . 2 . . . . Watcher 10 | . 1 . 5 . 1 3 . . . . Swarmer 32 | . 6 . 13 3 3 2 . . . 5 Grunt 67 | . 5 . 9 6 3 26 4 7 . 7 Duelist 9 | . . . 2 2 . 1 . 1 . 3 Sentry 22 | . . . 8 . 6 6 1 . . 1 Hunter 3 | . . . . . 1 2 . . . . Programmer 9 | . . . . . . 9 . . . . Packrat 3 | . . . . . . . . 3 . . Samaritan 2 | . . . . . . . . 2 . . Best Kill Streak 12 | . 4 . 5 6 3 6 4 4 . 12 Combat Bots Only 12 | . 4 . 4 6 3 5 4 4 . 12 Max Kills in Single Turn 3 | . 1 . 2 1 1 2 1 2 . 3 Gunslinging 1 | . . . . . . . . 1 . . Exploded 2 | . . . 2 . . . . 2 . 2 Melee . | . . . . . . . . . . . Uniques/NPCs Destroyed . | . . . . . . . . . . . Combat | -11 -10 -10 -9 -9 -8 -7 -7 -7 -7 -6 -------- Run | Yrd Mat Min Mat Min Mat Fac Low Low Zio Pro Hostile Shots Fired 798 | . 53 . 130 27 100 304 42 23 . 119 Missed 253 | . 11 . 37 5 30 111 17 10 . 32 Hits 545 | . 42 . 93 22 70 193 25 13 . 87 Melee 51 | . . . 6 2 . . . . . 43 Projectile 494 | . 42 . 87 20 70 193 25 13 . 44 AOE 2 | . . . . . . 2 . . . . Critical Strikes 31 | . 2 . 3 . 8 5 . . . 13 Actively Blocked 3 | . 1 . . . 2 . . . . . Damage Taken 8227 | . 437 . 1164 267 1122 2433 293 240 . 2271 Core 1019 | . 61 . 119 18 119 205 36 32 . 429 Absorbed by Shields . | . . . . . . . . . . . Redirected to Shielding 204 | . 56 . 40 . 108 . . . . . Regen/Repaired (Parts) 495 | . 44 . 188 . . 263 . . . . Core Remaining (%) 79 | 100 . 75 . 65 78 . . . . . Volleys Fired 454 | . 58 . 94 27 77 125 11 28 . 34 Largest 3 | . 2 . 2 2 2 3 3 3 . 2 Hottest 193 | . 80 . 136 136 118 185 193 141 . 105 Shots Fired 999 | . 114 . 187 55 154 366 32 39 1 51 Gun 790 | . 113 . 42 5 154 366 32 31 1 46 Cannon 195 | . 1 . 144 50 . . . . . . Launcher 9 | . . . 1 . . . . 8 . . Special 5 | . . . . . . . . . . 5 Kinetic 327 | . 58 . . 5 96 130 12 6 1 19 Thermal 658 | . 56 . 186 50 58 236 20 25 . 27 Explosive 6 | . . . 1 . . . . . . 5 Electromagnetic 8 | . . . . . . . . 8 . . Robot Hit Streak 37 | . 17 . 14 7 15 37 19 19 . 12 Robot Miss Streak 6 | . 6 . 5 4 4 5 2 2 . 2 Penetration Max . | . . . . . . . . . . . Secondary Targets 17 | . 4 . 1 . . 6 2 1 . 3 Max Gunslinging Chain 1 | . 1 . 1 . . 1 1 1 . 1 Shots Hit Robots 704 | . 72 . 119 36 108 264 26 33 . 46 Core Hits 360 | . 29 . 54 13 27 143 18 38 . 38 Critical Kills 5 | . 1 . 1 1 . 2 . . . . Critical Parts Destroyed . | . . . . . . . . . . . Critical Strikes 16 | . 2 . 2 1 4 5 . . . 2 Burn 9 | . 1 . 1 . 4 3 . . . . Meltdown 2 | . . . 1 1 . . . . . . Destroy 3 | . 1 . . . . 2 . . . . Sever 2 | . . . . . . . . . . 2 Melee Attacks 10 | . . . 4 . 1 2 . . . 3 Impact . | . . . . . . . . . . . Slashing 10 | . . . 4 . 1 2 . . . 3 Piercing . | . . . . . . . . . . . Sneak Attacks 1 | . . . 1 . . . . . . . Combat Hostiles . | . . . . . . . . . . . Follow-up Attacks . | . . . . . . . . . . . Damage Inflicted 15490 | . 734 . 2561 809 1827 5699 623 1060 . 2177 Guns 10795 | . 734 . 323 15 1827 5699 623 719 . 855 Cannons 2862 | . . . 2068 794 . . . . . . Explosions 1579 | . . . 103 . . . . 341 . 1135 Melee 113 | . . . 67 . . . . . . 46 Ramming . | . . . . . . . . . . . Kinetic 3390 | . 327 . . 15 1068 1509 140 87 . 244 Thermal 10267 | . 407 . 2391 794 759 4190 483 632 . 611 Explosive 1238 | . . . 103 . . . . . . 1135 Electromagnetic 341 | . . . . . . . . 341 . . Impact . | . . . . . . . . . . . Slashing 254 | . . . 67 . . . . . . 187 Piercing . | . . . . . . . . . . . Highest Corruption 5 | . . . 3 3 5 3 3 3 3 1 Average Corruption 2 | . . . 2 3 1 2 3 3 3 1 Corruption Purged . | . . . . . . . . . . . Corruption Blocked . | . . . . . . . . . . . Effects 128 | . . . 34 25 8 5 21 30 5 . Message Errors 27 | . . . 11 7 . . 4 5 . . Matter Fused 26 | . . . 7 2 3 . 6 7 1 . Heat Flow Errors 25 | . . . 3 8 2 . 5 5 2 . Energy Discharges 14 | . . . 6 1 . 1 4 2 . . Parts Fused 2 | . . . 1 1 . . . . . . Data Loss (minor) 13 | . . . 4 2 1 . 1 5 . . Data Loss (major) 5 | . . . . 1 . 1 . 2 1 . Misfires 9 | . . . . 2 1 1 1 3 1 . Alerts 2 | . . . 1 . 1 . . . . . Weapon Failures 5 | . . . 1 1 . 2 . 1 . . Overload Shots . | . . . . . . . . . . . Overflow Damage 32 | . . . 14 . . . . . . 18 Projectiles 14 | . . . 14 . . . . . . . Explosions 18 | . . . . . . . . . . 18 Melee . | . . . . . . . . . . . Knockbacks . | . . . . . . . . . . . Impact . | . . . . . . . . . . . Kinetic . | . . . . . . . . . . . Secondary . | . . . . . . . . . . . Self-Inflicted Damage 18 | . . . . . . . . 18 . . Shots 1 | . . . . . . . . 1 . . Rammed 1 | . . . . . . . . . . 1 Targets Rammed 1 | . . . . . . . . . . 1 Kicked . | . . . . . . . . . . . Crushed . | . . . . . . . . . . . Highest Temperature 401 | . 198 . 248 401 170 80 240 231 186 190 Average Temperature 59 | . 46 . 42 132 47 16 52 85 86 69 Received Heat Transfer 2064 | . 189 . 291 81 324 780 123 117 . 159 Effects 1 | . . . . 1 . . . . . . Short Circuit 1 | . . . . 1 . . . . . . Siege Activations . | . . . . . . . . . . . Martial Activations . | . . . . . . . . . . . Shielding Activations . | . . . . . . . . . . . Robots Disrupted . | . . . . . . . . . . . Combat Hostiles . | . . . . . . . . . . . Robots Corrupted . | . . . . . . . . . . . Combat Hostiles . | . . . . . . . . . . . Parts Fried 1 | . . . . . . . . 1 . . Impact Corruptions . | . . . . . . . . . . . Robots Melted 5 | . . . 2 1 . 1 . 1 . . Combat Hostiles 4 | . . . 2 1 . 1 . . . . Parts Melted 49 | . . . 11 2 6 23 5 1 . 1 Heat Transferred 21636 | . 1080 . 4588 1369 1887 8787 1075 1450 . 1400 Parts Sabotaged 1 | . . . . . . . . . . 1 Parts Stolen . | . . . . . . . . . . . Parts Stripped . | . . . . . . . . . . . Power Chain Reactions . | . . . . . . . . . . . Alert | -11 -10 -10 -9 -9 -8 -7 -7 -7 -7 -6 ------- Run | Yrd Mat Min Mat Min Mat Fac Low Low Zio Pro Maximum Alert Level 2 | . . . 2 1 . 2 . . . . Low Security (%) 67 | 100 100 100 42 84 100 51 . . . . Level 1 21 | . . . 39 16 . 29 . . . . Level 2 10 | . . . 17 . . 18 . . . . Level 3 . | . . . . . . . . . . . Level 4 . | . . . . . . . . . . . Level 5 . | . . . . . . . . . . . High Security . | . . . . . . . . . . . Max Security . | . . . . . . . . . . . Peak Influence 634 | . 182 13 478 279 85 634 . . . . Initial 179 | . . . . 179 . 15 . . . . Average 163 | . 59 . 231 121 19 244 . . . . Influence Increases 4285 | . 379 13 1035 260 436 1398 110 180 . 474 Destroy 0b10 Robot/C 2920 | . 220 . 640 220 260 920 100 160 . 400 Destroy 0b10 Robot/NC 185 | . 25 . 75 . 5 70 . . . 10 Destroy Leader 690 | . 46 . 200 40 92 242 10 20 . 40 Allied During Kill 9 | . . . . . . . . . . 9 Successful Hack 211 | . 73 13 30 . 43 52 . . . . Disable Machine 15 | . . . . . 15 . . . . . Destroy Structure 30 | . . . 15 . 6 9 . . . . Lose Combat Pursuer 225 | . 15 . 75 . 15 105 . . . 15 Influence Decreases 4017 | . 379 13 575 720 402 801 741 151 29 206 Entered New Map 564 | . . . . 281 . 19 235 . 29 . Time Decay 3093 | . 379 13 565 439 352 562 496 151 . 136 Lost Part 210 | . . . 10 . 50 70 10 . . 70 Purge Threat 150 | . . . . . . 150 . . . . Squads Dispatched 21 | . 1 . 4 . 2 13 . . . 1 Investigation 6 | . 1 . . . 2 3 . . . . Extermination 8 | . . . . . . 8 . . . . Reinforcement 5 | . . . 3 . . 2 . . . . Assault 2 | . . . 1 . . . . . . 1 Garrison . | . . . . . . . . . . . Intercept . | . . . . . . . . . . . Searches Triggered . | . . . . . . . . . . . Construction Impeded . | . . . . . . . . . . . Haulers Reinforced . | . . . . . . . . . . . Active Scanning Responses . | . . . . . . . . . . . Cargo Convoy Interrupts . | . . . . . . . . . . . Stealth | -11 -10 -10 -9 -9 -8 -7 -7 -7 -7 -6 --------- Run | Yrd Mat Min Mat Min Mat Fac Low Low Zio Pro Distress Signals 7 | . 1 . 2 . . 4 . . . . Communications Jammed . | . . . . . . . . . . . Distress Signals . | . . . . . . . . . . . Times Spotted 212 | . 25 . 47 11 28 63 5 8 . 25 Peak Tracking Total 11 | . 4 . 5 5 5 7 3 4 . 11 Tactical Retreats 8 | . 1 . 2 . 1 3 . . . 1 Traps | -11 -10 -10 -9 -9 -8 -7 -7 -7 -7 -6 ------- Run | Yrd Mat Min Mat Min Mat Fac Low Low Zio Pro Traps Triggered 7 | . 1 . 1 . 2 3 . . . . Indirectly . | . . . . . . . . . . . Trap Hack Attempts . | . . . . . . . . . . . Triggered . | . . . . . . . . . . . Disarmed . | . . . . . . . . . . . Reprogrammed . | . . . . . . . . . . . Reused . | . . . . . . . . . . . Traps Extracted . | . . . . . . . . . . . Installed . | . . . . . . . . . . . Triggered . | . . . . . . . . . . . Machines | -11 -10 -10 -9 -9 -8 -7 -7 -7 -7 -6 ---------- Run | Yrd Mat Min Mat Min Mat Fac Low Low Zio Pro Machines Disabled 1 | . . . . . 1 . . . . . Max in Single Turn 1 | . . . . . 1 . . . . . Garrison Access 2 | . . . . . 1 1 . . . . Machines Repaired . | . . . . . . . . . . . Machines Dismantled . | . . . . . . . . . . . Machines Sabotaged . | . . . . . . . . . . . Overloaded Fab Kills . | . . . . . . . . . . . Hacking | -11 -10 -10 -9 -9 -8 -7 -7 -7 -7 -6 --------- Run | Yrd Mat Min Mat Min Mat Fac Low Low Zio Pro Machines Accessed 57 | . 8 1 12 1 10 22 2 1 . . Terminals 36 | . 7 1 8 . 6 13 . 1 . . Fabricators 3 | . . . . . . 3 . . . . Repair Stations 6 | . 1 . 2 . . 3 . . . . Recycling Units 3 | . . . . . 2 1 . . . . Scanalyzers 4 | . . . 2 . 1 1 . . . . Garrison Access 2 | . . . . . 1 1 . . . . Total Hacks 139 | . 22 3 27 1 29 54 2 1 . . Successful 74 | . 13 2 14 1 16 25 2 1 . . Failed 63 | . 8 1 13 . 13 28 . . . . Catastrophic 12 | . . . 2 . 4 6 . . . . Database Lockouts 2 | . 1 . . . . 1 . . . . Manual 31 | . 7 . 4 . 12 8 . . . . Terminals 85 | . 18 3 18 . 16 29 . 1 . . Fabricators 3 | . . . . . . 3 . . . . Repair Stations 22 | . 4 . 6 . . 12 . . . . Recycling Units 8 | . . . . . 7 1 . . . . Scanalyzers 13 | . . . 3 . 4 6 . . . . Garrison Access 5 | . . . . . 2 3 . . . . Terminal Hacks 37 | . 10 2 7 1 7 7 2 1 . . Record 1 | . . . . . . . . 1 . . Robot Analysis 3 | . 2 . 1 . . . . . . . Open Door 3 | . . . . 1 . . 2 . . . Level Access Points 2 | . . 1 . . 1 . . . . . Branch Access Points 1 | . . . . . 1 . . . . . Unreport Threat 1 | . . . . . . 1 . . . . Locate Traps 12 | . 3 . 3 . 3 3 . . . . Dispatch Records 1 | . 1 . . . . . . . . . Recall Reinforcements 1 | . . . . . . 1 . . . . Hauler Manifests 3 | . 1 . 1 . 1 . . . . . Registered Components 4 | . 1 . 1 . 1 1 . . . . Zone Layout 5 | . 2 1 1 . . 1 . . . . Fabricator Hacks 3 | . . . . . . 3 . . . . Network Status 3 | . . . . . . 3 . . . . Repair Station Hacks 15 | . 3 . 4 . . 8 . . . . Scan Component 8 | . 2 . 2 . . 4 . . . . Repair 7 | . 1 . 2 . . 4 . . . . Recycling Unit Hacks 7 | . . . . . 6 1 . . . . Process 2 | . . . . . 2 . . . . . Report Inventory 3 | . . . . . 2 1 . . . . Retrieve Matter 2 | . . . . . 2 . . . . . Scanalyzer 10 | . . . 3 . 2 5 . . . . Retrieve Study 10 | . . . 3 . 2 5 . . . . Garrison Access Hacks 2 | . . . . . 1 1 . . . . Seal Access 2 | . . . . . 1 1 . . . . Unauthorized Hacks . | . . . . . . . . . . . Terminals . | . . . . . . . . . . . Fabricators . | . . . . . . . . . . . Repair Stations . | . . . . . . . . . . . Recycling Units . | . . . . . . . . . . . Scanalyzers . | . . . . . . . . . . . Garrison Access . | . . . . . . . . . . . Data Cores Recovered 2 | . 1 . . . . 1 . . . . Used . | . . . . . . . . . . . Hacking Detections 38 | . 5 . 8 . 6 19 . . . . Full Trace Events 2 | . . . . . 1 1 . . . . Feedback Events . | . . . . . . . . . . . Feedback Blocked . | . . . . . . . . . . . Robot Schematics Acquired . | . . . . . . . . . . . Robots Built . | . . . . . . . . . . . Authchips . | . . . . . . . . . . . Time . | . . . . . . . . . . . Total Robot Build Rating . | . . . . . . . . . . . Part Schematics Acquired . | . . . . . . . . . . . Parts Built . | . . . . . . . . . . . Authchips . | . . . . . . . . . . . Time . | . . . . . . . . . . . Total Part Build Rating . | . . . . . . . . . . . Part Studies Acquired 10 | . . . 3 . 2 5 . . . . Parts Repaired 7 | . 1 . 2 . . 4 . . . . Time 199 | . 13 . 64 . . 122 . . . . Parts Recycled . | . . . . . . . . . . . Recycled Matter 311 | . . . . . 311 . . . . . Retrieved Matter 410 | . . . . . 410 . . . . . Retrieved Components . | . . . . . . . . . . . Parts Scanalyzed . | . . . . . . . . . . . Part Schematics Acquired . | . . . . . . . . . . . Parts Damaged . | . . . . . . . . . . . Bothacking | -11 -10 -10 -9 -9 -8 -7 -7 -7 -7 -6 ------------ Run | Yrd Mat Min Mat Min Mat Fac Low Low Zio Pro Used RIF Installer . | . . . . . . . . . . . Robots Hacked . | . . . . . . . . . . . Non-combat . | . . . . . . . . . . . Combat . | . . . . . . . . . . . Robot Hacks Applied . | . . . . . . . . . . . Relay Couplers Released 4 | . . . . . . 4 . . . . Programmers 4 | . . . . . . 4 . . . . Fabnet Peak Effective % . | . . . . . . . . . . . Robots Rewired . | . . . . . . . . . . . Allies Hacked . | . . . . . . . . . . . Hacks Repelled . | . . . . . . . . . . . Allies | -11 -10 -10 -9 -9 -8 -7 -7 -7 -7 -6 -------- Run | Yrd Mat Min Mat Min Mat Fac Low Low Zio Pro Total Allies 1 | . . . . . . . . . . 1 Largest Group 1 | . . . . . . . . . . 1 Highest-Rated Group 99 | . . . . . . . . . . 99 Highest-Rated Ally 99 | . . . . . . . . . . 99 Total Orders . | . . . . . . . . . . . Ally Attacks 10 | . . . . . . . . . . 10 Total Damage 725 | . . . . . . . . . . 725 Kills 4 | . . . . . . . . . . 4 Allies Corrupted . | . . . . . . . . . . . Allies Melted . | . . . . . . . . . . . Intel | -11 -10 -10 -9 -9 -8 -7 -7 -7 -7 -6 ------- Run | Yrd Mat Min Mat Min Mat Fac Low Low Zio Pro Active Infowar (turns) . | . . . . . . . . . . . Robot Analysis Total 3 | . 2 . 1 . . . . . . . Derelict Logs Recovered 11 | . . 1 . 2 . . 2 3 2 1 Drone Launches . | . . . . . . . . . . . Drone Recoveries . | . . . . . . . . . . . Exploration | -11 -10 -10 -9 -9 -8 -7 -7 -7 -7 -6 ------------- Run | Yrd Mat Min Mat Min Mat Fac Low Low Zio Pro Turns Passed 17421 | 30 1134 742 2674 1100 1423 3839 1517 1817 1605 1540 Spaces Moved 9299 | 40 670 441 1356 600 704 1936 857 1008 943 744 Core 202 | 40 162 . . . . . . . . . Treads 9097 | . 508 441 1356 600 704 1936 857 1008 943 744 Legs . | . . . . . . . . . . . Wheels . | . . . . . . . . . . . Hover . | . . . . . . . . . . . Flight . | . . . . . . . . . . . Fastest Speed 50 | 50 50 160 160 160 158 158 167 167 167 167 Average Speed 160 | 50 133 160 160 160 159 162 167 167 167 167 Slowest Speed 210 | 50 160 160 160 160 162 167 167 167 167 210 Overloaded Moves . | . . . . . . . . . . . Propulsion Burnouts . | . . . . . . . . . . . Robots Hopped . | . . . . . . . . . . . Potential Cave-ins . | . . . . . . . . . . . Cave-ins Triggered . | . . . . . . . . . . . Exploration Rate (%) 77 | 4 95 97 93 99 53 56 96 98 86 72 Regions Visited 10 Branch Regions 6 Pre-discovered Areas 6 | . . . . 1 . . 1 2 2 . Known Exits Taken 3 | . . 1 . 1 1 . . . . . Unknown Exits Taken 7 | 1 1 . 1 . . 1 1 1 1 . Scrap Searched 18 | . . 3 . 1 . . 7 3 3 1 Spaces Dug 6 | . . . 3 . 1 2 . . . . Terrain Destroyed 102 | . . . 8 . 1 2 1 . . 90 Melee 6 | . . . 3 . 1 2 . . . . Projectile 2 | . . . . . . . 1 . . 1 AOE 94 | . . . 5 . . . . . . 89 Terrain Rammed . | . . . . . . . . . . . Walls Destroyed . | . . . . . . . . . . . Machines Disabled . | . . . . . . . . . . . Actions | -11 -10 -10 -9 -9 -8 -7 -7 -7 -7 -6 --------- Run | Yrd Mat Min Mat Min Mat Fac Low Low Zio Pro Total 10900 | 49 809 478 1679 686 872 2355 921 1100 975 976 Wait 819 | . 55 33 123 51 47 216 34 60 18 182 Move 9289 | 39 669 440 1355 599 703 1935 856 1007 942 744 Hop . | . . . . . . . . . . . Pick Up 86 | 7 11 3 31 2 11 12 5 . 3 1 Fast Attach 28 | 1 . . 6 . 3 13 . . 3 2 Attach 37 | 2 6 . 5 . 9 5 3 . . 7 Detach 3 | . . . . . 1 . 2 . . . Swap 74 | . 5 1 24 4 10 22 1 5 2 . Drop 97 | . 5 1 37 3 10 25 7 . 7 2 Fire 454 | . 58 . 94 27 77 125 11 28 . 34 Melee 10 | . . . 4 . 1 2 . . . 3 Ram 1 | . . . . . . . . . . 1 Kick . | . . . . . . . . . . . Crush . | . . . . . . . . . . . Escape Stasis . | . . . . . . . . . . . Rewire 2 | . . . . . . . 2 . . . Trap . | . . . . . . . . . . . Miscellaneous . | . . . . . . . . . . . Route ------- -11/Scrapyard -10/Materials (discovered 4 exits: *Mat x3 / *Min) -10/Mines (discovered 3 exits: *Mat x2 / [*Exi]) -9/Materials (discovered 4 exits: *Mat x3 / *Min) -9/Mines (discovered 3 exits: *Mat x2 / *Zio) -8/Materials (discovered 3 exits: *Fac x3) -7/Factory (discovered 5 exits: [*Fac] / [*Sto x2] / *Low x2) -7/Lower Caves -7/Lower Caves (discovered 2 exits: [*Fac] / *Zio) -7/Zion -6/Proximity Caves History --------- Turn | Location | Event 11 | -11/Scrapyard | Discovered new exit (range 16) 31 | -11/Scrapyard | Entered Materials 50 | -10/Materials | Central database locked down 94 | -10/Materials | Discovered new exit (range 13) 311 | -10/Materials | Build established: Mutant 416 | -10/Materials | Discovered new exit (range 16) 467 | -10/Materials | Repaired Propulsion Shielding 614 | -10/Materials | Discovered new exit (range 11) 698 | -10/Materials | Discovered new exit (range 12) 1165 | -10/Materials | Entered Mines 1171 | -10/Mines | Met a Derelict bent on vengeance 1173 | -10/Mines | Assembled infested the area 1173 | -10/Mines | Identified exit to Materials 1340 | -10/Mines | Received a Rocket Launcher from a helpful Derelict 1526 | -10/Mines | Discovered new exit (range 5) 1588 | -10/Mines | Learned location of 1 exit from Materials 1907 | -10/Mines | Entered Materials 1907 | -9/Materials | Evolved 2 slots: Propulsion x1, Utility x1 1908 | -9/Materials | Identified exit to Materials 1996 | -9/Materials | Repaired Lgt. Treads 2333 | -9/Materials | Discovered new exit (range 10) 2991 | -9/Materials | Discovered exit to Materials (range 14) 3804 | -9/Materials | Discovered exit to Materials (range 4) 3959 | -9/Materials | Repaired Insulated Plating 4307 | -9/Materials | First assault squad dispatched 4581 | -9/Materials | Entered Mines 4681 | -9/Mines | Learned 4 Materials zone layouts 4762 | -9/Mines | Discovered exit to Materials (range 13) 4763 | -9/Mines | A Derelict revealed a hidden shortcut to a safe place 4936 | -9/Mines | Learned location of Storage (-7) 5029 | -9/Mines | Learned 8 Materials zone layouts 5397 | -9/Mines | Found the Drone Emporium 5424 | -9/Mines | Found Prototype Device 5661 | -9/Mines | Discovered exit to Materials (range 6) 5681 | -9/Mines | Entered Materials 5681 | -8/Materials | Evolved 2 slots: Propulsion x1, Utility x1 5682 | -8/Materials | Identified exit to Factory 5918 | -8/Materials | Identified Decoy Drone Bay 6075 | -8/Materials | Lost 3 parts (1p1n1u) 7104 | -8/Materials | Entered Factory 7104 | -7/Factory | Evolved 2 slots: Utility x1, Weapon x1 7547 | -7/Factory | Central database locked down 7842 | -7/Factory | Build established: Scientist-Gunner 7920 | -7/Factory | Discovered new exit (range 16) 8359 | -7/Factory | Repaired Lgt. Treads+ 8399 | -7/Factory | Repaired Adv. Treads+ 8429 | -7/Factory | Repaired Lgt. Treads+ 8923 | -7/Factory | Discovered new exit (range 7) 9082 | -7/Factory | Discovered new exit (range 15) 9248 | -7/Factory | Build established: Scavenger-Gunner 9466 | -7/Factory | Found Unknown Protection 9466 | -7/Factory | Identified Powered Armor 9622 | -7/Factory | Build established: Gunner 9680 | -7/Factory | Repaired Cooling System 10109 | -7/Factory | Discovered new exit (range 3) 10415 | -7/Factory | Discovered new exit (range 4) 10943 | -7/Factory | Entered Lower Caves 11487 | -7/Lower Caves | Attracted the attention of an 0b10 checkpoint 11687 | -7/Lower Caves | Learned location of Zion (-7) 11727 | -7/Lower Caves | Learned Factory terminal intel 12368 | -7/Lower Caves | Found Prototype Device 12371 | -7/Lower Caves | Identified Heart of Steel 12402 | -7/Lower Caves | Encountered a Warlord checkpoint 12406 | -7/Lower Caves | Discovered new exit (range 10) 12460 | -7/Lower Caves | Entered another Lower Caves area 12505 | -7/Lower Caves | Discovered new exit (range 10) 13148 | -7/Lower Caves | Learned Factory stockpile data 13180 | -7/Lower Caves | Learned location of Extension (-4) 14036 | -7/Lower Caves | Discovered new exit (range 12) 14277 | -7/Lower Caves | Entered Zion 14424 | -7/Zion | Discovered new exit (range 16) 14488 | -7/Zion | System corruption cleaned by Quarantine Array 14725 | -7/Zion | Learned location of Data Miner (-6) 14907 | -7/Zion | Found GAL Module 14979 | -7/Zion | Learned Factory emergency access door positions 15074 | -7/Zion | Given the Hacking Drone Bay 15074 | -7/Zion | Found Prototype Device 15100 | -7/Zion | Learned location of 1 exit from Factory 15173 | -7/Zion | Learned 4 Factory zone layouts 15247 | -7/Zion | Met Imprinter 15787 | -7/Zion | Found Prototype Special Weapon 15787 | -7/Zion | Identified RU-N14's Throwing Claymores 15882 | -7/Zion | Entered Proximity Caves 16429 | -6/Proximity Caves | Received a Behemoth hack from an annoying Tinkerer 16767 | -6/Proximity Caves | Learned Factory emergency access door positions 17299 | -6/Proximity Caves | Attracted the attention of an 0b10 outpost 17305 | -6/Proximity Caves | Core integrity fell below 50% 17367 | -6/Proximity Caves | Core integrity fell below 20% 17368 | -6/Proximity Caves | Destroyed 12 combat bots 17392 | -6/Proximity Caves | Lost 6 parts (1p3n1u1w) 17395 | -6/Proximity Caves | Heart of Steel transformed into Warbot 17422 | -6/Proximity Caves | Destroyed by B-48 Gladiator with Mace Last Messages --------------- 17368_ Acquired 3 matter. 17369_ Hvy. Battle Rifle severed. 17369_ Slammed into L-41 Fighter. 17370_ Acquired 10 matter. 17371_ Acquired 8 matter. 17391_ C-45 Heavy ARC bursts open, deploying its payload. 17391_ G-67 Veteran unfolds itself. 17391_ B-48 Gladiator unfolds itself. 17391_ G-50 Soldier unfolds itself. 17391_ E-15 Imp unfolds itself. 17394_ Adv. Treads+ blown off. 17394_ E-15 Imp destroyed. Heart of Steel transforms into Warbot, brandishing Battle Rifles and Mak. Shrapnel Guns: "WARLORD FOREVER!" [Achievement: Brother of Steel] 17395_ Acquired Adv. Treads+. 17397_ Warbot suffers critical hit (Burn). 17403_ Warbot Spk. Treads severed. 17416_ B-48 Gladiator Rnf. Deuterium Engine severed. 17419_ B-48 Gladiator Imp. Light Armor Plating severed. Map ----- +----------------------------------------------------+ | | | ?????????????????????????????????????????????????? | | ?????????????????????????????????????????????????? | | ?????????????????????????????????????????????????? | | ?????????????????????????????????????????????????? | | ?????????????????????????????????????????????????? | | ?????????????????????????????????????????????????? | | ##???????????????????????????????????????????????? | | ##??????????????????????????????????????????????? | | #??????????????????????????????????????????????? | | #??????????????????????????????????????????????? | | #??????????????????????????????????????????????? | | ##??????????????????????????????????????????????? | | ###??????????????????????????????????????????????? | | # #??????????????????????????????????????????????? | | [ ##??????????????????????????????????????##?????? | | ###?????????????????###???????????????""#?????? | | ##???????????????## ##????????????? ??????? | | ###?????????????# ###??????????# ???????? | | ##??????????### #######??? / ????????? | | # #??????????# #??# #?????????? | | ## ## ######?????# #### #?# #?????????? | | ?## ## ## ##???## #### ## #####?????? | | ??# ## # #??## [%* =% | | ??# #??# !b###%#### % | | ??#### #?# ## @##?#[#??## # | | ?????##### ####??#### #??#[####?#% ### | | ????????## #???????#!#??#*% =#??* ????# | | ##?????## #???????# ####### #??? #??????? | | #????## ##???????# #?# #??? % # #????? | | #????# ####??????# ### ### ## #????? | | ###??# ### ##?????# #?# ##%="%" ?? | | #??## ###?# ##????# #?# = " ?? | | #???# #???# ##???# #?## = # # #?? | | #???## #???## ##### #??## ####### #??? | | # #????# #????## !#???## ##?????? ????? | | # #????# ###??## #####????####??????????????? | | # ###### #### #??????????????????????????? | | # ## ! #??????????????????????????? | | # ###### ##??????????????????????????? | | # #????##### ####???????????????????????????? | | # ####?????# ###??????????????????????????????? | | # ##???# #????????????????????????????????? | | ##??# #???????????????????????????????? | | ##### #???????????????????????????????? | | #?## ##???????????????????????????????? | | # #??########??????????????? ????????????? | | # ######## ##?????????????? ?????????? | | ##??###???????? ???????? | | #### #######?# ??????? | +----------------------------------------------------+ Best States ------------- Heat Dissipation 70 Energy Generation 16 Energy Capacity 800 Matter Stores 300 Matter Capacity 300 Sight Range 16 Terrain Scan Density 10 Armor Coverage 400 Resistance: KI 30 Resistance: EM 15 Propulsion Shielding 66 Evasion (%) 50 Targeting Accuracy 8 Recoil Reduction 4 Defensive Hacking 10 Item Schematics ----------------- None Robot Schematics ------------------ None Fabricated ------------ Nothing Repaired ---------- Propulsion Shielding | 12% | -10/Materials Lgt. Treads | 45% | -9/Materials Insulated Plating | 7% | -9/Materials Lgt. Treads | 30% | -7/Factory Adv. Treads | 48% | -7/Factory Lgt. Treads | 74% | -7/Factory Cooling System | 18% | -7/Factory Studied --------- Hvy. Assault Rifle | -9/Materials | Hacked Lgt. Treads | -9/Materials | Hacked Particle Cannon | -9/Materials | Hacked Arm. Treads | -8/Materials | Hacked Minigun | -8/Materials | Hacked Adv. Treads | -7/Factory | Hacked Hvy. Laser | -7/Factory | Hacked Shock Bomb Launcher | -7/Factory | Hacked Deuterium Engine | -7/Factory | Hacked Imp. Treads | -7/Factory | Hacked Alien Tech Used ----------------- None Achievements -------------- Brother of Steel Challenges ------------ None Game ------ Seed HypercooledVampiricInsulator Manual? 0 Play Time 01:36:13 Cumulative 229.3 hours Start 2026.09.20 @ 15:34:28 End 2026.09.20 @ 17:13:22 Sessions 1 Manual Loads 0 Difficulty Rogue Special Mode None Game No. 358 Rogue 355 Adventurer 3 Explorer 0 Win Type - Total 2 Types 2/0/0/0/0/0/0/0/0/0 Lore% 68 Gallery% 58 Achievement% 34 Wizard Run 0 Options --------- Layout 0 ASCII 0 Keyboard 0 Movement Mouse Keybinds 0 Fullscreen 2 Font 18/SmallcapsGlow Map View 76x50 Zoom Use 0% Tactical HUD 1 Map Filters NONE Filters NONE Steam 1 RUN: 17283e7b-436a-45c4-a6ab-9624adea4b16